[Event "German Bundesliga 2022-23"]
[Site "Germany"]
[Date "2022.10.22"]
[Round "1.14"]
[White "Popovic, Dusan"]
[Black "Cioara, Andrei-Nestor"]
[Result "1/2-1/2"]
[ECO "C00"]
[WhiteElo "2486"]
[BlackElo "2407"]
[Annotator "TA"]
[PlyCount "68"]
[EventDate "2022.10.21"]
[EventType "team-tourn"]
[EventCountry "GER"]
[SourceTitle "playchess.com"]
[Source "ChessBase"]
[SourceQuality "1"]
[TimeControl "40/6000+30:3000+30"]

{[%evp 21,68,-26,-15,-31,0,0,0,0,12,4,16,0,0,0,0,0,0,0,4,6,35,34,99,16,13,16,30,16,14,26,38,32,39,0,61,10,22,16,19,22,16,21,26,18,20,27,44,48,38]} 1. Nf3 {[%emt 0:00:05]} Nf6 {[%emt 0:00:20]} 2. g3 {[%emt 0:00:06]} d5 {[%emt 0:02:03]} 3. Bg2 {[%emt 0:00:06]} e6 {[%emt 0:07:16]} 4. O-O {[%emt 0:00:10]} c5 {[%emt 0:00:11]} 5. d3 {[%emt 0:00:52]} Nc6 {[%emt 0:02:04]} 6. Nbd2 {[%emt 0:00:06]} Be7 {[%emt 0:00:06]} 7. e4 {[%emt 0:00:15]} O-O {[%emt 0:00:04]} 8. Re1 {[%emt 0:00:22]} b5 {[%emt 0:03:36]} 9. e5 {[%emt 0:00:53]} Nd7 {[%emt 0:00:06]} 10. Nf1 {[%emt 0:00:12]} b4 {[%emt 0:00:50]} 11. h4 {[%emt 0:01:20][%cal Bh2h4,Bh4h5,Bh5h6][%mdl 32]} a5 {[%emt 0:00:03]} 12. h5 {[%emt 0:00:57] C00: French: Unusual White 2nd moves.} a4 {[%emt 0:00:21] has lost popularity (12...h6).} 13. h6 {[%emt 0:02:11]} g6 {[%emt 0:00:03]} 14. a3 {[%emt 0:00:05] The position is equal.} Ba6 {[%emt 0:00:07]} 15. N1h2 {[%emt 0:02:09]} bxa3 {[%emt 0:06:23]} 16. bxa3 {[%emt 0:00:35]} c4 {[%emt 0:00:04]} 17. d4 {[%emt 0:04:28]} c3 {[%emt 0:00:13] Prevents Bd2.} 18. Ng4 {[%emt 0:03:58]} Na5 {[%emt 0:00:27]} 19. Bf4 {[%emt 0:20:36]} Nc4 {[%emt 0:01:41]} 20. Qc1 {[%emt 0:04:22]} Re8 {[%emt 0:23:56]} 21. Bf1 {[%emt 0:22:47] [#]} Qa5 $146 {[%emt 0:09:32]} (21... Na5 $14) ({Predecessor:} 21... Nb2 22. Bxa6 Rxa6 23. Bg5 Nc4 24. Qf4 Rb6 25. Kg2 Rb2 26. Rec1 Bxg5 27. Nxg5 Rf8 {0-1 (37) Pahud,C (2071)-Moskalenko,V (2509) Barcelona 2001}) 22. Bg5 {[%emt 0:23:25]} (22. Bxc4 $16 dxc4 23. Bg5) 22... Nd2 $1 $11 {[%emt 0:06:07]} 23. Bxd2 {[%emt 0:01:34]} cxd2 {[%emt 0:04:06]} 24. Qxd2 {[%emt 0:02:12]} ({But not} 24. Nxd2 Qc3 $17) 24... Qxd2 {[%emt 0:10:38]} 25. Nxd2 {[%emt 0:00:08]} Bxf1 {[%emt 0:00:03]} 26. Kxf1 {[%emt 0:01:10]} Rec8 {[%emt 0:00:13] Inhibits c4.} 27. Reb1 {[%emt 0:05:13]} Ra7 {[%emt 0:04:15] Against Rb7} (27... Rxc2 $11 28. Ke2 Ra7) 28. Rb2 {[%emt 0:06:24]} (28. c4 $14) 28... Rac7 {[%emt 0:13:02]} 29. Rab1 {[%emt 0:01:15]} f5 {[%emt 0:02:48]} (29... Rxc2 $2 30. Rxc2 Rxc2 31. Rb7 $18) 30. exf6 {[%emt 0:00:10]} Nxf6 {[%emt 0:00:06]} 31. Nxf6+ {[%emt 0:00:38]} Bxf6 {[%emt 0:00:05]} 32. Nf3 {[%emt 0:01:09]} Be7 {[%emt 0:02:11] Prevents Rb4.} 33. Rb6 {[%emt 0:02:01]} Bxa3 {[%emt 0:01:53]} 34. Ra1 {[%emt 0:02:31]} Bf8 {[%emt 0:05:49] Weighted Error Value: White=0.11 (very precise) /Black=0.13 (very precise)} 1/2-1/2

[Event "German Bundesliga 2022-23"]
[Site "Germany"]
[Date "2022.10.23"]
[Round "1.15"]
[White "Donchenko, Alexander"]
[Black "Parvanyan, Ashot"]
[Result "1-0"]
[ECO "A17"]
[WhiteElo "2646"]
[BlackElo "2439"]
[Annotator "ChessBase"]
[PlyCount "79"]
[EventDate "2022.10.21"]
[EventType "team-tourn"]
[EventCountry "GER"]
[SourceTitle "playchess.com"]
[Source "ChessBase"]
[SourceQuality "1"]
[TimeControl "40/6000+30:3000+30"]

1. Nf3 Nf6 2. c4 e6 3. Nc3 d5 4. e3 a6 5. b3 Bd6 6. Bb2 O-O 7. Be2 b6 8. Qc2 Bb7 9. O-O c5 10. cxd5 exd5 11. d4 Nbd7 12. Rfd1 Qe7 13. Rac1 Rac8 14. dxc5 bxc5 15. Qf5 Qe6 16. Bd3 g6 17. Qg5 Ne5 18. Nxe5 Bxe5 19. Na4 Bxb2 20. Nxb2 Rc6 21. Be2 Rfc8 22. Bf3 R6c7 23. Qf4 Nd7 24. Nd3 c4 25. Nb4 Nf6 26. h4 a5 27. Nd3 Re7 28. Nb2 cxb3 29. Rxc8+ Bxc8 30. axb3 Rb7 31. Nd3 Qe7 32. Ne5 {[%emt 0:26:00]} Bf5 {[%emt 0:26:00]} 33. Bxd5 {[%emt 0:00:30]} Nxd5 {[%emt 0:00:30]} 34. Rxd5 {[%emt 0:00:30]} Rxb3 {[%emt 0:00:30]} 35. Nc6 {[%emt 0:00:30]} Qe4 {[%emt 0:00:30]} 36. Qh6 {[%emt 0:00:30]} Rb8 {[%emt 0:00:30]} 37. f3 {[%emt 0:00:30]} Qb1+ {[%emt 0:00:30]} 38. Kh2 {[%emt 0:00:30]} Be6 {[%emt 0:00:30]} 39. Ne7+ {[%emt 0:00:30]} Kh8 {[%emt 0:00:30]} 40. Rh5 {[%emt 0:00:30]} 1-0

[Event "German Bundesliga 2022-23"]
[Site "Germany"]
[Date "2022.10.22"]
[Round "1.15"]
[White "Petrisor, Adrian-Marian"]
[Black "Dudin, Gleb"]
[Result "0-1"]
[ECO "C45"]
[WhiteElo "2404"]
[BlackElo "2471"]
[Annotator "ChessBase"]
[PlyCount "60"]
[EventDate "2022.10.21"]
[EventType "team-tourn"]
[EventCountry "GER"]
[SourceTitle "playchess.com"]
[Source "ChessBase"]
[SourceQuality "1"]
[TimeControl "40/6000+30:3000+30"]

1. e4 {[%emt 0:00:03]} e5 {[%emt 0:01:01]} 2. Nf3 {[%emt 0:00:49]} Nc6 {[%emt 0:00:10]} 3. d4 {[%emt 0:04:07]} exd4 {[%emt 0:00:10]} 4. Nxd4 {[%emt 0:00:20]} Bc5 {[%emt 0:00:07]} 5. Nb3 {[%emt 0:00:42]} Bb6 {[%emt 0:00:10]} 6. Nc3 {[%emt 0:00:06]} d6 {[%emt 0:01:11]} 7. Qe2 {[%emt 0:03:08]} a5 {[%emt 0:03:16]} 8. Nd5 {[%emt 0:07:32]} a4 {[%emt 0:00:10]} 9. Nxb6 {[%emt 0:02:27]} cxb6 {[%emt 0:00:07]} 10. Nd2 {[%emt 0:00:04]} Nf6 {[%emt 0:03:57]} 11. Qe3 {[%emt 0:15:53]} O-O {[%emt 0:07:40]} 12. Bd3 {[%emt 0:11:10]} Re8 {[%emt 0:02:33]} 13. O-O {[%emt 0:01:26]} Bf5 {[%emt 0:20:17]} 14. f3 {[%emt 0:17:49]} d5 {[%emt 0:03:33]} 15. Qf2 {[%emt 0:03:14]} Bg6 {[%emt 0:03:07]} 16. a3 {[%emt 0:06:55]} Qd7 {[%emt 0:20:24]} 17. Qxb6 {[%emt 0:03:34]} dxe4 {[%emt 0:04:25]} 18. fxe4 {[%emt 0:02:41]} Nxe4 {[%emt 0:02:14]} 19. Nf3 {[%emt 0:06:28]} Nf6 {[%emt 0:08:03]} 20. Bxg6 {[%emt 0:02:08]} hxg6 {[%emt 0:00:09]} 21. Bg5 {[%emt 0:02:52]} Ra6 {[%emt 0:05:21]} 22. Qf2 {[%emt 0:10:03]} Ne4 {[%emt 0:00:09]} 23. Qh4 {[%emt 0:00:32]} Nd4 {[%emt 0:01:02]} 24. Rae1 {[%emt 0:03:09]} Rae6 {[%emt 0:03:42]} 25. Rd1 {[%emt 0:03:37]} Ne2+ {[%emt 0:02:18]} 26. Kh1 {[%emt 0:00:03]} Qc7 {[%emt 0:00:28]} 27. c3 {[%emt 0:01:12]} f6 {[%emt 0:01:41]} 28. Bc1 {[%emt 0:00:04]} g5 {[%emt 0:01:08]} 29. Qh3 {[%emt 0:00:41]} f5 {[%emt 0:01:18]} 30. Nxg5 {[%emt 0:01:59]} Rh6 {[%emt 0:00:07]} 0-1

[Event "German Bundesliga 2022-23"]
[Site "Germany"]
[Date "2022.10.22"]
[Round "1.15"]
[White "Wong, Gengchun"]
[Black "Maurizzi, Marc`Andria"]
[Result "0-1"]
[ECO "B30"]
[WhiteElo "2195"]
[BlackElo "2521"]
[Annotator "ChessBase"]
[PlyCount "84"]
[EventDate "2022.10.21"]
[EventType "team-tourn"]
[EventCountry "GER"]
[SourceTitle "playchess.com"]
[Source "ChessBase"]
[SourceQuality "1"]
[TimeControl "40/6000+30:3000+30"]

1. e4 {[%emt 0:00:06]} c5 {[%emt 0:00:11]} 2. Nf3 {[%emt 0:00:15]} Nc6 {[%emt 0:00:38]} 3. Bb5 {[%emt 0:01:50]} e6 {[%emt 0:00:16]} 4. O-O {[%emt 0:00:05]} Nge7 {[%emt 0:00:32]} 5. d4 {[%emt 0:01:46]} cxd4 {[%emt 0:02:24]} 6. Nxd4 {[%emt 0:00:29]} Qb6 {[%emt 0:09:03]} 7. Nxc6 {[%emt 0:01:14]} dxc6 {[%emt 0:12:03]} 8. Bd3 {[%emt 0:13:56]} Ng6 {[%emt 0:01:17]} 9. Nd2 {[%emt 0:00:41]} e5 {[%emt 0:01:15]} 10. Nc4 {[%emt 0:03:51]} Qc7 {[%emt 0:00:15]} 11. a4 {[%emt 0:00:36]} Be6 {[%emt 0:01:28]} 12. Be3 {[%emt 0:01:50]} Nf4 {[%emt 0:02:30]} 13. Qf3 {[%emt 0:06:59]} g5 {[%emt 0:03:25]} 14. Qg3 {[%emt 0:24:00]} f6 {[%emt 0:11:15]} 15. Rfd1 {[%emt 0:08:02]} h5 {[%emt 0:04:22]} 16. f3 {[%emt 0:07:57]} g4 {[%emt 0:03:50]} 17. fxg4 {[%emt 0:05:27]} hxg4 {[%emt 0:00:30]} 18. Bf1 {[%emt 0:02:17]} Be7 {[%emt 0:10:08]} 19. Rd2 {[%emt 0:06:38]} Kf7 {[%emt 0:04:45]} 20. Rad1 {[%emt 0:01:04]} Rad8 {[%emt 0:01:05]} 21. Qf2 {[%emt 0:05:58]} Rxd2 {[%emt 0:07:02]} 22. Rxd2 {[%emt 0:00:25]} b5 {[%emt 0:01:16]} 23. axb5 {[%emt 0:00:29]} cxb5 {[%emt 0:00:03]} 24. Na3 {[%emt 0:00:45]} a6 {[%emt 0:00:29]} 25. Nb1 {[%emt 0:03:22]} b4 {[%emt 0:02:08]} 26. c3 {[%emt 0:03:55]} Qc6 {[%emt 0:02:10]} 27. cxb4 {[%emt 0:01:17]} Qxe4 {[%emt 0:00:11]} 28. Nc3 {[%emt 0:01:19]} Qxb4 {[%emt 0:00:11]} 29. Bxa6 {[%emt 0:01:16]} Ra8 {[%emt 0:01:17]} 30. Bf1 {[%emt 0:00:24]} Ra1 {[%emt 0:00:24]} 31. Rd1 {[%emt 0:03:35]} Rxd1 {[%emt 0:00:08]} 32. Nxd1 {[%emt 0:00:04]} Nd5 {[%emt 0:00:02]} 33. Bd2 {[%emt 0:00:57]} Qb3 {[%emt 0:00:33]} 34. Qe1 {[%emt 0:03:20]} e4 {[%emt 0:01:47]} 35. Kh1 {[%emt 0:00:35]} Bc5 {[%emt 0:00:14]} 36. Nc3 {[%emt 0:01:02]} e3 {[%emt 0:00:19]} 37. Bc1 {[%emt 0:00:09]} Nxc3 {[%emt 0:00:23]} 38. bxc3 {[%emt 0:00:03]} Qb1 {[%emt 0:01:01]} 39. Qh4 {[%emt 0:01:24]} Qxc1 {[%emt 0:00:46]} 40. Qh7+ {[%emt 0:00:23]} Kf8 {[%emt 0:00:29]} 41. Qh8+ {[%emt 0:50:07]} Ke7 {[%emt 0:50:07]} 42. Qh7+ {[%emt 0:00:08]} Bf7 {[%emt 0:00:08]} 0-1

[Event "German Bundesliga 2022-23"]
[Site "Germany"]
[Date "2022.10.23"]
[Round "1.16"]
[White "Pajeken, Jakob Leon"]
[Black "Movsesian, Sergei"]
[Result "0-1"]
[ECO "E67"]
[WhiteElo "2461"]
[BlackElo "2619"]
[Annotator "ChessBase"]
[PlyCount "68"]
[EventDate "2022.10.21"]
[EventType "team-tourn"]
[EventCountry "GER"]
[SourceTitle "playchess.com"]
[Source "ChessBase"]
[SourceQuality "1"]
[TimeControl "40/6000+30:3000+30"]

1. d4 Nf6 2. Nf3 g6 3. g3 Bg7 4. Bg2 O-O 5. O-O d6 6. c4 Nbd7 7. Nc3 e5 {[%emt 0:13:30]} 8. h3 {[%emt 0:14:00]} Re8 {[%emt 0:00:30]} 9. Re1 {[%emt 0:00:30]} exd4 {[%emt 0:00:30]} 10. Nxd4 {[%emt 0:00:30]} Nb6 {[%emt 0:00:30]} 11. b3 {[%emt 0:00:30]} d5 {[%emt 0:00:30]} 12. c5 {[%emt 0:00:30]} Nbd7 {[%emt 0:00:30]} 13. c6 {[%emt 0:00:30]} Ne5 {[%emt 0:00:30]} 14. cxb7 {[%emt 0:00:30]} Bxb7 {[%emt 0:00:30]} 15. Ba3 {[%emt 0:00:30]} h5 {[%emt 0:00:30]} 16. Na4 {[%emt 0:00:30]} Ne4 {[%emt 0:00:30]} 17. Nc5 {[%emt 0:00:30]} Nxc5 {[%emt 0:00:30]} 18. Bxc5 {[%emt 0:00:30]} Nd7 {[%emt 0:00:30]} 19. b4 {[%emt 0:00:30]} a5 {[%emt 0:00:30]} 20. a3 {[%emt 0:00:30]} Nf6 {[%emt 0:00:30]} 21. Nb3 {[%emt 0:00:30]} axb4 {[%emt 0:00:30]} 22. axb4 {[%emt 0:00:30]} Rxa1 {[%emt 0:00:30]} 23. Qxa1 {[%emt 0:00:30]} h4 {[%emt 0:00:30]} 24. g4 {[%emt 0:00:30]} Nxg4 {[%emt 0:00:30]} 25. Qa7 {[%emt 0:00:30]} Bc8 {[%emt 0:00:30]} 26. hxg4 {[%emt 0:00:30]} Bxg4 {[%emt 0:00:30]} 27. Bd4 {[%emt 0:00:30]} h3 {[%emt 0:00:30]} 28. Bxg7 {[%emt 0:00:30]} hxg2 {[%emt 0:00:30]} 29. Bc3 {[%emt 0:00:30]} Qh4 {[%emt 0:00:30]} 30. f3 {[%emt 0:00:30]} Qh1+ {[%emt 0:00:30]} 31. Kf2 {[%emt 0:00:30]} Qh2 {[%emt 0:00:30]} 32. Rg1 {[%emt 0:00:30]} Qh4+ {[%emt 0:00:30]} 33. Kxg2 {[%emt 0:00:30]} Bh3+ {[%emt 0:00:30]} 34. Kh2 {[%emt 0:00:30]} Bf1# {[%emt 0:00:30]} 0-1

[Event "German Bundesliga 2022-23"]
[Site "Germany"]
[Date "2022.10.22"]
[Round "1.16"]
[White "Koellner, Ruben Gideon"]
[Black "Lutz, Ruben"]
[Result "1-0"]
[ECO "D02"]
[WhiteElo "2403"]
[BlackElo "2098"]
[Annotator "RC"]
[PlyCount "97"]
[EventDate "2022.10.21"]
[EventType "team-tourn"]
[EventCountry "GER"]
[SourceTitle "playchess.com"]
[Source "ChessBase"]
[SourceQuality "1"]
[TimeControl "40/6000+30:3000+30"]

1. d4 {[%emt 0:00:03]} d5 {[%emt 0:00:06]} 2. Nf3 {[%emt 0:00:04]} Nf6 {[%emt 0:00:08]} 3. Bf4 {[%emt 0:00:04]} c5 {[%emt 0:00:35]} 4. e3 {[%emt 0:00:36]} Nc6 {[%emt 0:00:22]} 5. Nbd2 {[%emt 0:00:00]} cxd4 {[%emt 0:04:34]} 6. exd4 {[%emt 0:00:00]} Qb6 {[%emt 0:04:52]} 7. Nb3 {[%emt 0:00:20]} Bg4 {[%emt 0:07:59]} 8. Be2 {[%emt 0:06:51]} e6 {[%emt 0:00:25]} 9. O-O {[%emt 0:01:05]} Be7 {[%emt 0:00:37]} 10. a4 {[%emt 0:00:17]} O-O {[%emt 0:03:25]} 11. a5 {[%emt 0:00:24]} Qd8 {[%emt 0:00:29]} 12. a6 {[%emt 0:06:31]} b6 {[%emt 0:03:12]} 13. c3 {[%emt 0:06:52]} Ne4 {[%emt 0:03:55]} 14. Ne5 {[%emt 0:03:22]} Bxe2 {[%emt 0:01:54]} 15. Qxe2 {[%emt 0:00:07]} Qc8 {[%emt 0:19:34]} 16. Qb5 {[%emt 0:07:42]} Nxe5 {[%emt 0:05:17]} 17. dxe5 {[%emt 0:01:46]} f6 {[%emt 0:04:10]} 18. Nd4 {[%emt 0:06:46]} g5 {[%emt 0:10:10]} 19. exf6 {[%emt 0:01:20]} Bxf6 {[%emt 0:00:35]} 20. Be3 {[%emt 0:01:21]} Nd6 {[%emt 0:08:07]} 21. Qe2 {[%emt 0:01:47]} e5 {[%emt 0:02:07]} 22. Nf3 {[%emt 0:03:29]} g4 {[%emt 0:03:00]} 23. Nd2 {[%emt 0:00:16]} Kh8 {[%emt 0:05:38]} 24. Rfd1 {[%emt 0:00:40]} Qe6 {[%emt 0:02:34]} 25. Nf1 {[%emt 0:03:53]} Rad8 {[%emt 0:02:03]} 26. Ra4 {[%emt 0:02:46]} Rg8 {[%emt 0:03:32]} 27. Bc1 {[%emt 0:02:00]} Ne4 {[%emt 0:07:45]} 28. Ng3 {[%emt 0:22:27]} Nxg3 {[%emt 0:00:25]} 29. hxg3 {[%emt 0:00:06]} h5 {[%emt 0:01:37]} 30. Be3 {[%emt 0:05:02]} Rge8 {[%emt 0:02:17]} 31. Qb5 {[%emt 0:05:38]} Qd7 {[%emt 0:00:58]} 32. Qb3 {[%emt 0:02:08]} Kg7 {[%emt 0:01:19]} 33. Rb4 {[%emt 0:01:11]} Qf7 {[%emt 0:01:42]} 34. Qa4 {[%emt 0:04:52]} Qd7 {[%emt 0:00:48]} 35. Rb5 {[%emt 0:04:22]} d4 {[%emt 0:01:14]} 36. cxd4 {[%emt 0:01:49]} exd4 {[%emt 0:00:02]} 37. Bf4 {[%emt 0:01:23]} d3 {[%emt 0:00:24]} 38. Qc4 {[%emt 0:05:30]} Re2 {[%emt 0:01:01]} 39. Rb3 {[%emt 0:01:39]} Qd4 {[%emt 0:00:33]} 40. Qxd4 {[%emt 0:00:51]} Bxd4 {[%emt 0:00:31]} 41. Rbxd3 {[%emt 0:51:08]} Bxf2+ {[%emt 0:01:43]} 42. Kf1 {[%emt 0:00:00]} Rde8 {[%emt 0:34:14]} 43. R3d2 {[%emt 0:00:00]} Rxd2 {[%emt 0:00:11]} 44. Rxd2 {[%emt 0:00:00]} Bc5 {[%emt 0:01:18]} 45. Rd7+ {[%emt 0:00:00]} Kg6 {[%emt 0:02:03]} 46. Rxa7 {[%emt 0:00:00]} h4 {[%emt 0:03:37]} 47. gxh4 {[%emt 0:00:00]} Rf8 {[%emt 0:02:07]} 48. g3 {[%emt 0:00:00]} Bd6 {[%emt 0:00:25]} 49. h5+ {[%emt 0:00:00]} 1-0

[Event "German Bundesliga 2022-23"]
[Site "Germany"]
[Date "2022.10.22"]
[Round "1.16"]
[White "Kuznecovs, Nikita"]
[Black "Geirnaert, Steven"]
[Result "1-0"]
[ECO "A17"]
[WhiteElo "2301"]
[BlackElo "2399"]
[Annotator "RC"]
[PlyCount "37"]
[EventDate "2022.10.21"]
[EventType "team-tourn"]
[EventCountry "GER"]
[SourceTitle "playchess.com"]
[Source "ChessBase"]
[SourceQuality "1"]
[TimeControl "40/6000+30:3000+30"]

1. Nf3 {[%emt 0:00:05]} Nf6 {[%emt 0:00:05]} 2. c4 {[%emt 0:00:10]} e6 {[%emt 0:00:08]} 3. Nc3 {[%emt 0:00:07]} Bb4 {[%emt 0:00:13]} 4. g4 {[%emt 0:00:09]} O-O {[%emt 0:00:37]} 5. g5 {[%emt 0:00:27]} Ne8 {[%emt 0:00:11]} 6. Qb3 {[%emt 0:05:28]} c5 {[%emt 0:00:07]} 7. d4 {[%emt 0:05:59]} b6 {[%emt 0:09:16]} 8. a3 {[%emt 0:02:44]} Ba5 {[%emt 0:01:00]} 9. Bg2 {[%emt 0:27:09]} d5 {[%emt 0:30:56]} 10. dxc5 {[%emt 0:18:31]} bxc5 {[%emt 0:00:14]} 11. O-O {[%emt 0:00:06]} Nc7 {[%emt 0:12:29]} 12. Ne5 {[%emt 0:06:58]} Bxc3 {[%emt 0:12:37]} 13. Qxc3 {[%emt 0:08:24]} Qe7 {[%emt 0:21:03]} 14. Bf4 {[%emt 0:00:31]} a5 {[%emt 0:00:38]} 15. Qg3 {[%emt 0:00:58]} Ra7 {[%emt 0:03:38]} 16. Ng4 {[%emt 0:02:37]} Rd8 {[%emt 0:01:27]} 17. Nf6+ {[%emt 0:01:33]} Kh8 {[%emt 0:00:58]} 18. Be5 {[%emt 0:02:01]} Ne8 {[%emt 0:12:53]} 19. Nxe8 {[%emt 0:01:14]} 1-0

[Event "German Bundesliga 2022-23"]
[Site "Germany"]
[Date "2022.10.23"]
[Round "2.1"]
[White "Maghsoodloo, Parham"]
[Black "Nisipeanu, Liviu-Dieter"]
[Result "1-0"]
[ECO "E05"]
[WhiteElo "2721"]
[BlackElo "2615"]
[Annotator "TA"]
[PlyCount "49"]
[EventDate "2022.10.21"]
[EventType "team-tourn"]
[EventCountry "GER"]
[SourceTitle "playchess.com"]
[Source "ChessBase"]
[SourceQuality "1"]
[TimeControl "40/6000+30:3000+30"]

{[%evp 14,49,33,33,37,0,0,0,0,-13,0,0,25,44,33,31,27,-10,42,36,35,52,50,54,41,44,82,87,88,94,87,50,170,175,241,210,220,154]} 1. d4 {[%emt 0:00:05]} Nf6 {[%emt 0:00:11]} 2. c4 {[%emt 0:00:09]} e6 {[%emt 0:00:05]} 3. Nf3 {[%emt 0:00:04]} d5 {[%emt 0:00:07]} 4. g3 {[%emt 0:00:04]} Be7 {[%emt 0:00:08]} 5. Bg2 {[%emt 0:00:03]} O-O {[%emt 0:00:06]} 6. O-O {[%emt 0:00:05]} dxc4 {[%emt 0:01:13]} 7. Qc2 {[%emt 0:00:05]} c5 {[%emt 0:03:51]} 8. dxc5 {[%emt 0:01:38]} Nc6 {[%emt 0:00:06] E05: Open Catalan: 5 Nf3 Be7.} 9. Rd1 {[%emt 0:12:37]} ({White should play} 9. Nbd2 $14) 9... Nb4 $11 {[%emt 0:12:43]} 10. Qa4 {[%emt 0:01:31]} Nfd5 {[%emt 0:00:15] [#] White must now prevent ...Bd7. The position is equal.} 11. Ne5 $146 {[%emt 0:03:24] Inhibits Bd7. aiming for e4.} ({Predecessor:} 11. Rd2 Bd7 12. Qd1 Qc7 13. a3 Na6 14. Ne5 Qxe5 15. Bxd5 exd5 16. Rxd5 Qe6 17. Rxd7 Nxc5 18. Rxe7 Qxe7 {0-1 (31) Leer Salvesen,B (2373)-Houska,J (2401) Norway 2020}) 11... Qc7 {[%emt 0:15:35]} 12. a3 $1 {[%emt 0:09:55]} Qxe5 {[%emt 0:40:04]} 13. axb4 {[%emt 0:00:28] e4 is the strong threat.} a5 {[%emt 0:00:08]} 14. Nc3 {[%emt 0:09:55][%cal Rg2d5,Bb1c3,Bc3e4,Be4d6][%mdl 32]} Nxb4 {[%emt 0:16:06]} 15. Ne4 {[%emt 0:09:53]} f5 {[%emt 0:02:25]} (15... Bxc5 $2 16. Bf4 Qxb2 17. Nxc5 $18) (15... Qc7 $11) 16. Nd6 $14 {[%emt 0:05:22]} Qxc5 {[%emt 0:00:54]} 17. Be3 {[%emt 0:00:23]} Qc7 {[%emt 0:05:38]} 18. Nxc8 {[%emt 0:18:02]} Qxc8 {[%emt 0:00:10]} (18... Raxc8 $2 19. Rd7 b5 20. Qxb5 $18) 19. Rd7 $36 {[%emt 0:00:19][%mdl 2048] White has good play.} b5 {[%emt 0:01:20]} 20. Qxb5 {[%emt 0:03:07]} Rb8 {[%emt 0:00:05]} 21. Bb7 {[%emt 0:00:25] White has more active pieces. This bishop pair is nice.} Qe8 {[%emt 0:00:28][%cal Ob4d5]} 22. Rxa5 {[%emt 0:01:41]} Nd5 {[%emt 0:00:58]} (22... f4 $1 $14 23. Bxf4 Rf5) 23. Ba7 $18 {[%emt 0:04:26] White is clearly better.} (23. Bxd5 Rxb5 24. Bxe6+ Kh8 25. Rxb5 Bf6 26. Bxf5 Be5) 23... Rd8 {[%emt 0:04:45] [#]} (23... Nf6 $142) 24. Bc6 $1 {[%emt 0:01:11] Strongly threatening Rxd5.} ({Don't do} 24. Bxd5 $6 exd5 25. Qxd5+ (25. Rxd5 Qxb5 26. Raxb5 Rxd5 $16) 25... Qf7 26. Qxf7+ Rxf7 $16) 24... Qf7 {[%emt 0:01:13]} 25. Qxc4 {[%emt 0:02:02] Weighted Error Value: White=0.06 (flawless) /Black=0.19 (very precise)} ({Resist} 25. Bxd5 $6 exd5 26. Qxd5 (26. Rxd5 Rxd5 27. Qxd5 Qxd5 $16) 26... Rxd7 27. Qxd7 Bd8 $16) 1-0

[Event "German Bundesliga 2022-23"]
[Site "Germany"]
[Date "2022.10.23"]
[Round "2.1"]
[White "Eljanov, Pavel"]
[Black "Ivanchuk, Vasyl"]
[Result "1-0"]
[ECO "D12"]
[WhiteElo "2697"]
[BlackElo "2678"]
[Annotator "TA"]
[PlyCount "45"]
[EventDate "2022.10.21"]
[EventType "team-tourn"]
[EventCountry "GER"]
[SourceTitle "playchess.com"]
[Source "ChessBase"]
[SourceQuality "1"]
[TimeControl "40/6000+30:3000+30"]

{[%evp 11,45,26,22,10,17,17,20,23,20,35,31,34,25,26,58,49,52,49,71,66,83,83,64,64,104,130,149,117,237,242,287,304,305,304,479,461]} 1. d4 {[%emt 0:00:08]} d5 {[%emt 0:00:22]} 2. c4 {[%emt 0:00:18]} c6 {[%emt 0:00:04]} 3. Nf3 {[%emt 0:00:12]} Nf6 {[%emt 0:00:06]} 4. e3 {[%emt 0:01:59]} Bf5 {[%emt 0:00:35]} 5. Nc3 {[%emt 0:00:06]} e6 {[%emt 0:00:03]} 6. Nh4 {[%emt 0:00:11]} Bg6 {[%emt 0:00:05]} 7. Be2 {[%emt 0:02:52] D12: Slav Defence: 3 Nf3 Nf6 4 e3 Bf5.} Nbd7 {[%emt 0:00:18]} 8. O-O {[%emt 0:00:44]} dxc4 {[%emt 0:01:29]} 9. Bxc4 {[%emt 0:04:19] The position is equal.} Bh5 {[%emt 0:00:16]} 10. Be2 {[%emt 0:00:20]} Bxe2 {[%emt 0:05:20]} 11. Qxe2 {[%emt 0:00:03]} c5 {[%emt 0:00:10]} 12. Rd1 {[%emt 0:00:50]} cxd4 {[%emt 0:04:17]} 13. exd4 {[%emt 0:03:50] d5 is the strong threat.} Nb6 {[%emt 0:03:01] Inhibits d5.} 14. Nf5 {[%emt 0:04:24][%cal Od4d5,Bh4f5,Bf5g3,Bg3h5][%mdl 32] [#]} Nfd5 $146 {[%emt 0:17:47] [#]} ({Predecessor:} 14... Qd7 15. Qe5 Nc4 16. Qe2 Nb6 17. d5 Nfxd5 18. Nxd5 Nxd5 19. Bg5 f6 20. Ne3 Be7 21. Bxf6 gxf6 {½-½ (32) Gomez,J (2538)-Debashis,D (2392) Mashhad 2011}) 15. Ne4 $1 {[%emt 0:08:16][%cal Bc3e4,Be4c5,Bc5e6][%mdl 32]} h6 {[%emt 0:00:08] [#] Against Bg5} 16. a4 $1 {[%emt 0:18:21] Hoping for Nc5.} a6 {[%emt 0:18:12]} 17. Nc5 {[%emt 0:03:31][%cal Oc5e6] Threatens to win with Nxe6! White has more active pieces. The black rooks are badly placed.} Qf6 {[%emt 0:04:34]} 18. Ng3 {[%emt 0:01:14]} Rb8 {[%emt 0:04:18]} 19. Ra3 {[%emt 0:03:50] aiming for Rb3.} Nd7 {[%emt 0:00:53] [#]} (19... Bd6 $16) 20. Nh5 $1 $18 {[%emt 0:03:00]} Qf5 {[%emt 0:01:24] [#]} 21. Rf3 $1 {[%emt 0:05:07]} Qxh5 {[%emt 0:02:54]} 22. Nxe6 {[%emt 0:00:09]} Ne7 {[%emt 0:00:04]} (22... fxe6 $142 23. Rxf8+ Kxf8 24. Qxh5 N7f6) 23. Re1 {[%emt 0:02:29] Weighted Error Value: White=0.04 (flawless) /Black=0.29 (precise)} 1-0